[Event "Titled Tuesday Blitz February 07 Early 2023"]
[White "Andreev, Konstantin"]
[Black "Eynullayev, Atilla"]
[WhiteFideId "24239305"]
[BlackFideId "13413570"]
[WhiteElo "2195"]
[BlackElo "2281"]
[Result "1-0"]
[Round "06"]
[TimeControl "180+2"]
[Date "2023.02.07"]
[WhiteClock "0:00:45"]
[BlackClock "0:00:02"]

1. e4 {[%clk 0:02:57]}  c5 {[%clk 0:02:59]} 2. Nf3 {[%clk 0:02:58]}  e6 {[%clk 0:02:59]} 3. d4 {[%clk 0:02:58]}  cxd4 {[%clk 0:02:59]} 4. Nxd4 {[%clk 0:02:58]}  a6 {[%clk 0:03:00]} 5. Bd3 {[%clk 0:02:57]}  Bc5 {[%clk 0:02:59]} 6. Nb3 {[%clk 0:02:54]}  Ba7 {[%clk 0:03:00]} 7. Qg4 {[%clk 0:02:55]}  Nf6 {[%clk 0:03:00]} 8. Qg3 {[%clk 0:02:55]}  d6 {[%clk 0:02:52]} 9. Nc3 {[%clk 0:02:55]}  Nc6 {[%clk 0:02:49]} 10. Be3 {[%clk 0:02:54]}  Bxe3 {[%clk 0:02:34]} 11. Qxe3 {[%clk 0:02:55]}  b5 {[%clk 0:02:33]} 12. O-O-O {[%clk 0:02:55]}  Rb8 {[%clk 0:02:22]} 13. Kb1 {[%clk 0:02:54]}  O-O {[%clk 0:02:21]} 14. f3 {[%clk 0:02:53]}  b4 {[%clk 0:02:21]} 15. Ne2 {[%clk 0:02:53]}  a5 {[%clk 0:02:21]} 16. g4 {[%clk 0:02:53]}  a4 {[%clk 0:02:20]} 17. Nbc1 {[%clk 0:02:54]}  e5 {[%clk 0:02:18]} 18. Bc4 {[%clk 0:02:54]}  Na5 {[%clk 0:02:16]} 19. Bd3 {[%clk 0:02:44]}  Be6 {[%clk 0:02:16]} 20. g5 {[%clk 0:02:44]}  Ne8 {[%clk 0:02:11]} 21. f4 {[%clk 0:02:44]}  b3 {[%clk 0:02:06]} 22. cxb3 {[%clk 0:02:43]}  axb3 {[%clk 0:02:01]} 23. a3 {[%clk 0:02:43]}  d5 {[%clk 0:01:47]} 24. exd5 {[%clk 0:02:40]}  Bxd5 {[%clk 0:01:43]} 25. Qxe5 {[%clk 0:02:34]}  Bxh1 {[%clk 0:01:19]} 26. Bxh7+ {[%clk 0:02:33]}  Kxh7 {[%clk 0:01:20]} 27. Rxd8 {[%clk 0:02:33]}  Rxd8 {[%clk 0:01:20]} 28. Qxa5 {[%clk 0:02:33]}  Be4+ {[%clk 0:01:20]} 29. Ka1 {[%clk 0:02:33]}  Rd1 {[%clk 0:01:21]} 30. Qb4 {[%clk 0:02:29]}  Nd6 {[%clk 0:01:03]} 31. Qxb3 {[%clk 0:02:25]}  Re1 {[%clk 0:00:44]} 32. Qb4 {[%clk 0:02:03]}  Rd1 {[%clk 0:00:43]} 33. Qb3 {[%clk 0:02:03]}  Rd2 {[%clk 0:00:32]} 34. Qe3 {[%clk 0:01:59]}  Rc2 {[%clk 0:00:23]} 35. Nc3 {[%clk 0:01:53]}  Bf5 {[%clk 0:00:23]} 36. N1e2 {[%clk 0:01:49]}  Nc4 {[%clk 0:00:18]} 37. Qc5 {[%clk 0:01:45]}  Bd3 {[%clk 0:00:15]} 38. Qxf8 {[%clk 0:01:38]}  Rxb2 {[%clk 0:00:09]} 39. Qc5 {[%clk 0:01:27]}  Rb3 {[%clk 0:00:08]} 40. Qd4 {[%clk 0:00:58]}  Rxa3+ {[%clk 0:00:08]} 41. Na2 {[%clk 0:00:59]}  Bxe2 {[%clk 0:00:08]} 42. Qe4+ {[%clk 0:00:59]}  g6 {[%clk 0:00:08]} 43. Qxe2 {[%clk 0:01:00]}  Ne3 {[%clk 0:00:07]} 44. Kb2 {[%clk 0:00:58]}  Rxa2+ {[%clk 0:00:01]} 45. Kxa2 {[%clk 0:00:57]}  Nf5 {[%clk 0:00:02]} 46. Qe8 {[%clk 0:00:55]}  Kg7 {[%clk 0:00:02]} 47. Qe5+ {[%clk 0:00:53]}  Kg8 {[%clk 0:00:02]} 48. Kb3 {[%clk 0:00:50]}  Ng7 {[%clk 0:00:02]} 49. Kc4 {[%clk 0:00:50]}  Kf8 {[%clk 0:00:02]} 50. Kd5 {[%clk 0:00:50]}  Nf5 {[%clk 0:00:01]} 51. Kc6 {[%clk 0:00:47]}  Ne7+ {[%clk 0:00:01]} 52. Kd7 {[%clk 0:00:47]}  Nf5 {[%clk 0:00:02]} 53. Qh8# {[%clk 0:00:45]} 1-0


[Site "https://www.chess.com"]

[Event "Titled Tuesday Blitz February 07 Early 2023"]
[White "Kochetov, Andrey"]
[Black "Carrasco Miranda, Andres"]
[WhiteFideId "24130532"]
[BlackFideId "3405990"]
[WhiteElo "2165"]
[BlackElo "2240"]
[Result "1-0"]
[Round "06"]
[TimeControl "180+2"]
[Date "2023.02.07"]
[WhiteClock "0:00:09"]
[BlackClock "0:01:33"]

1. e4 {[%clk 0:03:00]}  c5 {[%clk 0:02:58]} 2. Nf3 {[%clk 0:02:59]}  d6 {[%clk 0:02:59]} 3. d4 {[%clk 0:02:58]}  cxd4 {[%clk 0:02:59]} 4. Nxd4 {[%clk 0:02:58]}  Nf6 {[%clk 0:02:59]} 5. f3 {[%clk 0:02:59]}  e5 {[%clk 0:02:58]} 6. Nb3 {[%clk 0:02:58]}  d5 {[%clk 0:02:57]} 7. Bg5 {[%clk 0:02:54]}  Be6 {[%clk 0:02:53]} 8. Bxf6 {[%clk 0:02:51]}  gxf6 {[%clk 0:02:52]} 9. exd5 {[%clk 0:02:51]}  Qxd5 {[%clk 0:02:52]} 10. Qxd5 {[%clk 0:02:51]}  Bxd5 {[%clk 0:02:53]} 11. Nc3 {[%clk 0:02:52]}  Bb4 {[%clk 0:02:52]} 12. O-O-O {[%clk 0:02:49]}  Bxb3 {[%clk 0:02:50]} 13. cxb3 {[%clk 0:02:47]}  Bxc3 {[%clk 0:02:47]} 14. bxc3 {[%clk 0:02:47]}  Nc6 {[%clk 0:02:46]} 15. Bd3 {[%clk 0:02:25]}  Ke7 {[%clk 0:02:45]} 16. Be4 {[%clk 0:02:24]}  Rad8 {[%clk 0:02:42]} 17. Rxd8 {[%clk 0:02:24]}  Rxd8 {[%clk 0:02:43]} 18. Bxh7 {[%clk 0:02:23]}  Ke6 {[%clk 0:02:41]} 19. Be4 {[%clk 0:02:13]}  f5 {[%clk 0:02:41]} 20. Bxc6 {[%clk 0:02:09]}  bxc6 {[%clk 0:02:42]} 21. Rd1 {[%clk 0:02:09]}  Rh8 {[%clk 0:02:40]} 22. h3 {[%clk 0:02:06]}  e4 {[%clk 0:02:39]} 23. Rf1 {[%clk 0:02:02]}  Ke5 {[%clk 0:02:39]} 24. fxe4 {[%clk 0:01:57]}  Kxe4 {[%clk 0:02:36]} 25. Kd2 {[%clk 0:01:50]}  f4 {[%clk 0:02:33]} 26. Ke2 {[%clk 0:01:45]}  Rg8 {[%clk 0:02:18]} 27. Kf2 {[%clk 0:01:39]}  Rg3 {[%clk 0:02:17]} 28. Re1+ {[%clk 0:01:36]}  Kf5 {[%clk 0:02:16]} 29. Re7 {[%clk 0:01:33]}  f6 {[%clk 0:02:16]} 30. Rxa7 {[%clk 0:01:29]}  Rxc3 {[%clk 0:02:16]} 31. Ra5+ {[%clk 0:01:29]}  Ke4 {[%clk 0:02:14]} 32. h4 {[%clk 0:01:27]}  Rc2+ {[%clk 0:02:14]} 33. Kg1 {[%clk 0:01:26]}  Rc1+ {[%clk 0:02:09]} 34. Kh2 {[%clk 0:01:26]}  Rc2 {[%clk 0:02:09]} 35. Kh3 {[%clk 0:01:14]}  Rc1 {[%clk 0:02:07]} 36. Ra4+ {[%clk 0:00:35]}  Ke3 {[%clk 0:02:07]} 37. Kg4 {[%clk 0:00:31]}  Rg1 {[%clk 0:01:43]} 38. Rxf4 {[%clk 0:00:23]}  Rxg2+ {[%clk 0:01:42]} 39. Kf5 {[%clk 0:00:24]}  Rxa2 {[%clk 0:01:39]} 40. Rc4 {[%clk 0:00:13]}  Rf2+ {[%clk 0:01:30]} 41. Kg6 {[%clk 0:00:10]}  f5 {[%clk 0:01:31]} 42. h5 {[%clk 0:00:09]}  f4 {[%clk 0:01:31]} 43. h6 {[%clk 0:00:08]}  Rh2 {[%clk 0:01:31]} 44. Rxc6 {[%clk 0:00:08]}  f3 {[%clk 0:01:31]} 45. h7 {[%clk 0:00:05]}  f2 {[%clk 0:01:24]} 46. Rf6 {[%clk 0:00:05]}  Rh3 {[%clk 0:01:24]} 47. Kg7 {[%clk 0:00:03]}  Rf3 {[%clk 0:01:22]} 48. Rxf3+ {[%clk 0:00:03]}  Kxf3 {[%clk 0:01:23]} 49. h8=Q {[%clk 0:00:02]}  f1=Q {[%clk 0:01:23]} 50. Qf8+ {[%clk 0:00:03]}  Ke2 {[%clk 0:01:24]} 51. Qxf1+ {[%clk 0:00:04]}  Kxf1 {[%clk 0:01:25]} 52. b4 {[%clk 0:00:04]}  Ke2 {[%clk 0:01:26]} 53. b5 {[%clk 0:00:05]}  Kd3 {[%clk 0:01:27]} 54. b6 {[%clk 0:00:05]}  Kc4 {[%clk 0:01:28]} 55. b7 {[%clk 0:00:06]}  Kb5 {[%clk 0:01:29]} 56. b8=Q+ {[%clk 0:00:07]}  Ka6 {[%clk 0:01:30]} 57. Kf6 {[%clk 0:00:07]}  Ka5 {[%clk 0:01:31]} 58. Ke5 {[%clk 0:00:08]}  Ka6 {[%clk 0:01:31]} 59. Kd5 {[%clk 0:00:09]}  Ka5 {[%clk 0:01:32]} 60. Kc5 {[%clk 0:00:09]}  Ka4 {[%clk 0:01:33]} 61. Qb4# {[%clk 0:00:09]} 1-0


[Site "https://www.chess.com"]

[Event "Titled Tuesday Blitz February 07 Early 2023"]
[White "Sharafiev, Azat"]
[Black "Miszler, Levente"]
[WhiteFideId "4186214"]
[BlackFideId "763276"]
[WhiteElo "2427"]
[BlackElo "2271"]
[Result "1/2-1/2"]
[Round "06"]
[TimeControl "180+2"]
[Date "2023.02.07"]
[WhiteClock "0:00:13"]
[BlackClock "0:00:15"]

1. e4 {[%clk 0:02:59]}  Nc6 {[%clk 0:02:58]} 2. Nf3 {[%clk 0:02:58]}  d6 {[%clk 0:02:58]} 3. d4 {[%clk 0:02:57]}  Nf6 {[%clk 0:02:57]} 4. Nc3 {[%clk 0:02:57]}  g6 {[%clk 0:02:57]} 5. Bb5 {[%clk 0:02:54]}  a6 {[%clk 0:02:55]} 6. Ba4 {[%clk 0:02:54]}  b5 {[%clk 0:02:54]} 7. Bb3 {[%clk 0:02:54]}  Na5 {[%clk 0:02:54]} 8. O-O {[%clk 0:02:53]}  Nxb3 {[%clk 0:02:54]} 9. axb3 {[%clk 0:02:53]}  Bb7 {[%clk 0:02:54]} 10. Re1 {[%clk 0:02:52]}  Bg7 {[%clk 0:02:53]} 11. Bg5 {[%clk 0:02:46]}  O-O {[%clk 0:02:44]} 12. Qe2 {[%clk 0:02:41]}  b4 {[%clk 0:02:35]} 13. Bxf6 {[%clk 0:02:41]}  bxc3 {[%clk 0:02:28]} 14. Bxg7 {[%clk 0:02:36]}  cxb2 {[%clk 0:02:28]} 15. Bxf8 {[%clk 0:02:28]}  bxa1=Q {[%clk 0:02:28]} 16. Rxa1 {[%clk 0:02:28]}  Qxf8 {[%clk 0:02:23]} 17. c4 {[%clk 0:02:26]}  Qg7 {[%clk 0:02:21]} 18. Qd3 {[%clk 0:02:24]}  c5 {[%clk 0:02:17]} 19. Rd1 {[%clk 0:02:17]}  cxd4 {[%clk 0:02:16]} 20. Nxd4 {[%clk 0:02:17]}  Rc8 {[%clk 0:02:13]} 21. Ne2 {[%clk 0:02:16]}  Qe5 {[%clk 0:02:12]} 22. Nc3 {[%clk 0:02:15]}  Qa5 {[%clk 0:02:10]} 23. Nd5 {[%clk 0:02:12]}  Bxd5 {[%clk 0:02:09]} 24. exd5 {[%clk 0:02:12]}  Rb8 {[%clk 0:02:05]} 25. Qe3 {[%clk 0:02:12]}  Rb7 {[%clk 0:02:03]} 26. h4 {[%clk 0:02:06]}  h5 {[%clk 0:02:00]} 27. Qh3 {[%clk 0:02:02]}  Qb6 {[%clk 0:01:53]} 28. Qc8+ {[%clk 0:02:01]}  Kg7 {[%clk 0:01:53]} 29. Rd3 {[%clk 0:02:01]}  Qc7 {[%clk 0:01:49]} 30. Qxc7 {[%clk 0:01:27]}  Rxc7 {[%clk 0:01:50]} 31. Kf1 {[%clk 0:01:27]}  Kf6 {[%clk 0:01:44]} 32. Ke2 {[%clk 0:01:27]}  Rb7 {[%clk 0:01:41]} 33. Kd2 {[%clk 0:01:27]}  e6 {[%clk 0:01:35]} 34. dxe6 {[%clk 0:01:17]}  Kxe6 {[%clk 0:01:36]} 35. Kc2 {[%clk 0:01:14]}  Rc7 {[%clk 0:01:33]} 36. Re3+ {[%clk 0:01:13]}  Kf6 {[%clk 0:01:32]} 37. Re8 {[%clk 0:01:09]}  Rc5 {[%clk 0:01:30]} 38. Ra8 {[%clk 0:01:07]}  Rf5 {[%clk 0:01:29]} 39. f3 {[%clk 0:01:05]}  a5 {[%clk 0:01:28]} 40. Kd3 {[%clk 0:01:02]}  g5 {[%clk 0:01:24]} 41. hxg5+ {[%clk 0:00:39]}  Rxg5 {[%clk 0:01:24]} 42. Ra6 {[%clk 0:00:37]}  Ke6 {[%clk 0:01:22]} 43. Ke3 {[%clk 0:00:34]}  Rxg2 {[%clk 0:01:13]} 44. Rxa5 {[%clk 0:00:34]}  Rb2 {[%clk 0:01:14]} 45. Rxh5 {[%clk 0:00:35]}  Rxb3+ {[%clk 0:01:14]} 46. Ke4 {[%clk 0:00:35]}  Rc3 {[%clk 0:01:13]} 47. Rh6+ {[%clk 0:00:33]}  f6 {[%clk 0:01:11]} 48. f4 {[%clk 0:00:27]}  Rxc4+ {[%clk 0:01:11]} 49. Ke3 {[%clk 0:00:28]}  d5 {[%clk 0:01:01]} 50. Rh5 {[%clk 0:00:27]}  Re4+ {[%clk 0:01:01]} 51. Kf3 {[%clk 0:00:26]}  Ra4 {[%clk 0:01:01]} 52. Ke3 {[%clk 0:00:26]}  Ra3+ {[%clk 0:00:57]} 53. Kd4 {[%clk 0:00:25]}  Rf3 {[%clk 0:00:56]} 54. Rxd5 {[%clk 0:00:12]}  Rd3+ {[%clk 0:00:21]} 55. Kxd3 {[%clk 0:00:10]}  Kxd5 {[%clk 0:00:22]} 56. Ke3 {[%clk 0:00:11]}  f5 {[%clk 0:00:19]} 57. Kd3 {[%clk 0:00:10]}  Kc5 {[%clk 0:00:20]} 58. Kc3 {[%clk 0:00:11]}  Kd5 {[%clk 0:00:20]} 59. Kd3 {[%clk 0:00:11]}  Kc5 {[%clk 0:00:19]} 60. Kc3 {[%clk 0:00:12]}  Kd5 {[%clk 0:00:15]} 61. Kd3 {[%clk 0:00:13]} 1/2-1/2


[Site "https://www.chess.com"]

[Event "Titled Tuesday Blitz February 07 Early 2023"]
[White "OKEKE, Isaac Chukwudalu"]
[Black "Vagman, Roy"]
[WhiteFideId "8508526"]
[BlackFideId "2828995"]
[WhiteElo "2155"]
[BlackElo "2273"]
[Result "0-1"]
[Round "06"]
[TimeControl "180+2"]
[Date "2023.02.07"]
[WhiteClock "0:00:11"]
[BlackClock "0:01:52"]

1. e4 {[%clk 0:02:33]}  g6 {[%clk 0:03:00]} 2. d4 {[%clk 0:02:33]}  Bg7 {[%clk 0:03:01]} 3. Nc3 {[%clk 0:02:31]}  d6 {[%clk 0:02:59]} 4. Be3 {[%clk 0:02:28]}  Nc6 {[%clk 0:02:59]} 5. Qd2 {[%clk 0:02:20]}  e5 {[%clk 0:03:00]} 6. Nge2 {[%clk 0:02:17]}  Nge7 {[%clk 0:02:59]} 7. O-O-O {[%clk 0:02:14]}  exd4 {[%clk 0:02:59]} 8. Nxd4 {[%clk 0:02:13]}  O-O {[%clk 0:03:00]} 9. h4 {[%clk 0:02:11]}  h5 {[%clk 0:02:54]} 10. f3 {[%clk 0:02:09]}  Nxd4 {[%clk 0:02:48]} 11. Bxd4 {[%clk 0:02:08]}  Bxd4 {[%clk 0:02:47]} 12. Qxd4 {[%clk 0:02:08]}  Nc6 {[%clk 0:02:48]} 13. Qd2 {[%clk 0:01:49]}  Be6 {[%clk 0:02:48]} 14. g4 {[%clk 0:01:48]}  hxg4 {[%clk 0:02:42]} 15. h5 {[%clk 0:01:47]}  g5 {[%clk 0:02:42]} 16. f4 {[%clk 0:01:37]}  gxf4 {[%clk 0:02:35]} 17. Qxf4 {[%clk 0:01:34]}  Ne5 {[%clk 0:02:35]} 18. Be2 {[%clk 0:01:22]}  Kh7 {[%clk 0:02:33]} 19. Nd5 {[%clk 0:01:14]}  f5 {[%clk 0:02:22]} 20. exf5 {[%clk 0:01:04]}  Rxf5 {[%clk 0:02:23]} 21. Qe4 {[%clk 0:01:00]}  Qg5+ {[%clk 0:02:17]} 22. Ne3 {[%clk 0:00:50]}  d5 {[%clk 0:02:17]} 23. Qd4 {[%clk 0:00:25]}  c5 {[%clk 0:02:17]} 24. Qxc5 {[%clk 0:00:22]}  Rc8 {[%clk 0:02:17]} 25. Qd4 {[%clk 0:00:19]}  Nc6 {[%clk 0:02:16]} 26. Qd2 {[%clk 0:00:18]}  Re5 {[%clk 0:02:15]} 27. Bd3+ {[%clk 0:00:18]}  Kh6 {[%clk 0:02:14]} 28. Rde1 {[%clk 0:00:16]}  Nd4 {[%clk 0:02:06]} 29. Nxg4+ {[%clk 0:00:15]}  Bxg4 {[%clk 0:02:04]} 30. Rxe5 {[%clk 0:00:15]}  Qxd2+ {[%clk 0:02:04]} 31. Kxd2 {[%clk 0:00:16]}  Nf3+ {[%clk 0:02:05]} 32. Ke3 {[%clk 0:00:15]}  Nxe5 {[%clk 0:02:06]} 33. Kf4 {[%clk 0:00:16]}  Nxd3+ {[%clk 0:02:05]} 34. cxd3 {[%clk 0:00:16]}  Bxh5 {[%clk 0:02:04]} 35. Ke5 {[%clk 0:00:16]}  Kg6 {[%clk 0:02:01]} 36. Rg1+ {[%clk 0:00:13]}  Kf7 {[%clk 0:02:01]} 37. Rg2 {[%clk 0:00:13]}  Rc6 {[%clk 0:01:54]} 38. Rf2+ {[%clk 0:00:13]}  Ke7 {[%clk 0:01:55]} 39. Kxd5 {[%clk 0:00:13]}  Bf7+ {[%clk 0:01:56]} 40. Kd4 {[%clk 0:00:12]}  Rd6+ {[%clk 0:01:56]} 41. Kc3 {[%clk 0:00:12]}  a5 {[%clk 0:01:55]} 42. b3 {[%clk 0:00:12]}  b6 {[%clk 0:01:54]} 43. Rf4 {[%clk 0:00:11]}  Be6 {[%clk 0:01:54]} 44. Re4 {[%clk 0:00:12]}  Kd7 {[%clk 0:01:55]} 45. Rh4 {[%clk 0:00:12]}  Kc6 {[%clk 0:01:55]} 46. Rh5 {[%clk 0:00:11]}  Bf7 {[%clk 0:01:54]} 47. Rh7 {[%clk 0:00:11]}  Rxd3+ {[%clk 0:01:52]} 0-1


[Site "https://www.chess.com"]

[Event "Titled Tuesday Blitz February 07 Early 2023"]
[White "Rudzinska, Michalina"]
[Black "Aarav Dengla"]
[WhiteFideId "1172883"]
[BlackFideId "45059756"]
[WhiteElo "2244"]
[BlackElo "2343"]
[Result "0-1"]
[Round "06"]
[TimeControl "180+2"]
[Date "2023.02.07"]
[WhiteClock "0:01:26"]
[BlackClock "0:01:09"]

1. e4 {[%clk 0:02:54]}  c5 {[%clk 0:02:59]} 2. Nf3 {[%clk 0:02:53]}  d6 {[%clk 0:02:56]} 3. d4 {[%clk 0:02:52]}  cxd4 {[%clk 0:02:56]} 4. Nxd4 {[%clk 0:02:53]}  Nf6 {[%clk 0:02:55]} 5. Nc3 {[%clk 0:02:54]}  a6 {[%clk 0:02:56]} 6. Bg5 {[%clk 0:02:51]}  e6 {[%clk 0:02:55]} 7. f4 {[%clk 0:02:51]}  Be7 {[%clk 0:02:53]} 8. Qf3 {[%clk 0:02:50]}  h6 {[%clk 0:02:53]} 9. Bh4 {[%clk 0:02:50]}  Qc7 {[%clk 0:02:22]} 10. O-O-O {[%clk 0:02:46]}  Nbd7 {[%clk 0:02:21]} 11. Bf2 {[%clk 0:02:42]}  b5 {[%clk 0:02:16]} 12. a3 {[%clk 0:02:39]}  Bb7 {[%clk 0:02:15]} 13. g4 {[%clk 0:02:38]}  Nc5 {[%clk 0:02:08]} 14. Bd3 {[%clk 0:02:25]}  d5 {[%clk 0:01:46]} 15. e5 {[%clk 0:02:21]}  Nfe4 {[%clk 0:01:46]} 16. Bxe4 {[%clk 0:02:18]}  dxe4 {[%clk 0:01:43]} 17. Qe3 {[%clk 0:02:16]}  Rc8 {[%clk 0:01:42]} 18. Kb1 {[%clk 0:02:14]}  O-O {[%clk 0:01:34]} 19. h4 {[%clk 0:02:10]}  Rfd8 {[%clk 0:01:34]} 20. h5 {[%clk 0:02:04]}  Na4 {[%clk 0:01:30]} 21. Nxa4 {[%clk 0:02:02]}  bxa4 {[%clk 0:01:31]} 22. c3 {[%clk 0:01:59]}  Bd5 {[%clk 0:01:29]} 23. g5 {[%clk 0:01:56]}  Qc4 {[%clk 0:01:25]} 24. Nc2 {[%clk 0:01:52]}  Qa2+ {[%clk 0:01:13]} 25. Kc1 {[%clk 0:01:51]}  Rb8 {[%clk 0:01:14]} 26. Nb4 {[%clk 0:01:27]}  Qa1+ {[%clk 0:01:09]} 27. Kd2 {[%clk 0:01:26]}  Bb3+ {[%clk 0:01:09]} 0-1


[Site "https://www.chess.com"]

[Event "Titled Tuesday Blitz February 07 Early 2023"]
[White "JonSnowNW1"]
[Black "Tymrakiewicz, Rafal"]
[BlackFideId "1108832"]
[WhiteElo "2329"]
[BlackElo "2144"]
[Result "0-1"]
[Round "06"]
[TimeControl "180+2"]
[Date "2023.02.07"]
[WhiteClock "0:00:01"]
[BlackClock "0:00:34"]

1. c4 {[%clk 0:02:47]}  e5 {[%clk 0:02:58]} 2. Nc3 {[%clk 0:02:45]}  c6 {[%clk 0:02:44]} 3. Nf3 {[%clk 0:02:43]}  d6 {[%clk 0:02:42]} 4. g3 {[%clk 0:02:35]}  g6 {[%clk 0:02:35]} 5. Bg2 {[%clk 0:02:33]}  Bg7 {[%clk 0:02:36]} 6. O-O {[%clk 0:02:31]}  d5 {[%clk 0:02:35]} 7. cxd5 {[%clk 0:02:19]}  cxd5 {[%clk 0:02:36]} 8. Qb3 {[%clk 0:02:19]}  Ne7 {[%clk 0:02:34]} 9. Ng5 {[%clk 0:02:15]}  h6 {[%clk 0:02:25]} 10. Nh3 {[%clk 0:01:54]}  Nbc6 {[%clk 0:02:25]} 11. Nxd5 {[%clk 0:01:51]}  Nxd5 {[%clk 0:02:24]} 12. Bxd5 {[%clk 0:01:51]}  Bxh3 {[%clk 0:02:23]} 13. Bxf7+ {[%clk 0:01:12]}  Ke7 {[%clk 0:02:22]} 14. Re1 {[%clk 0:01:05]}  Nd4 {[%clk 0:02:19]} 15. Qxb7+ {[%clk 0:00:59]}  Qd7 {[%clk 0:02:14]} 16. Qxd7+ {[%clk 0:00:53]}  Bxd7 {[%clk 0:02:11]} 17. Bxg6 {[%clk 0:00:53]}  Rac8 {[%clk 0:02:07]} 18. b3 {[%clk 0:00:53]}  Nc2 {[%clk 0:02:03]} 19. Bxc2 {[%clk 0:00:50]}  Rxc2 {[%clk 0:02:03]} 20. Ba3+ {[%clk 0:00:50]}  Ke6 {[%clk 0:02:04]} 21. d3 {[%clk 0:00:34]}  Rhc8 {[%clk 0:01:57]} 22. e3 {[%clk 0:00:32]}  Bb5 {[%clk 0:01:55]} 23. d4 {[%clk 0:00:31]}  e4 {[%clk 0:01:53]} 24. Bc5 {[%clk 0:00:20]}  a6 {[%clk 0:01:50]} 25. a4 {[%clk 0:00:20]}  Be2 {[%clk 0:01:39]} 26. Rac1 {[%clk 0:00:19]}  Bd3 {[%clk 0:01:30]} 27. Rxc2 {[%clk 0:00:17]}  Bxc2 {[%clk 0:01:30]} 28. b4 {[%clk 0:00:13]}  Bxa4 {[%clk 0:01:30]} 29. Kg2 {[%clk 0:00:08]}  Bc6 {[%clk 0:01:28]} 30. h4 {[%clk 0:00:05]}  Bf8 {[%clk 0:01:26]} 31. f3 {[%clk 0:00:05]}  exf3+ {[%clk 0:01:25]} 32. Kf2 {[%clk 0:00:05]}  Be4 {[%clk 0:01:22]} 33. Ra1 {[%clk 0:00:05]}  Bxc5 {[%clk 0:01:09]} 34. dxc5 {[%clk 0:00:04]}  Ra8 {[%clk 0:01:05]} 35. Rd1 {[%clk 0:00:04]}  Bd5 {[%clk 0:01:02]} 36. g4 {[%clk 0:00:04]}  Rb8 {[%clk 0:00:57]} 37. Rd4 {[%clk 0:00:04]}  Ke5 {[%clk 0:00:55]} 38. Rf4 {[%clk 0:00:04]}  a5 {[%clk 0:00:49]} 39. bxa5 {[%clk 0:00:03]}  Rb2+ {[%clk 0:00:49]} 40. Kg3 {[%clk 0:00:02]}  Rg2+ {[%clk 0:00:48]} 41. Kh3 {[%clk 0:00:03]}  Ra2 {[%clk 0:00:47]} 42. Rf5+ {[%clk 0:00:03]}  Ke4 {[%clk 0:00:47]} 43. Rf4+ {[%clk 0:00:01]}  Kxe3 {[%clk 0:00:47]} 44. Rf6 {[%clk 0:00:02]}  f2 {[%clk 0:00:35]} 45. c6 {[%clk 0:00:02]}  Bf3 {[%clk 0:00:34]} 46. Rxf3+ {[%clk 0:00:01]}  Kxf3 {[%clk 0:00:34]} 0-1


[Site "https://www.chess.com"]

[Event "Titled Tuesday Blitz February 07 Early 2023"]
[White "Schut, Han"]
[Black "Khamdamova, Afruza"]
[WhiteFideId "1005561"]
[BlackFideId "14210444"]
[WhiteElo "2101"]
[BlackElo "2162"]
[Result "0-1"]
[Round "06"]
[TimeControl "180+2"]
[Date "2023.02.07"]
[WhiteClock "0:00:07"]
[BlackClock "0:00:12"]

1. e4 {[%clk 0:03:00]}  e5 {[%clk 0:03:00]} 2. Nf3 {[%clk 0:03:00]}  Nf6 {[%clk 0:03:00]} 3. Bc4 {[%clk 0:03:00]}  Nxe4 {[%clk 0:02:59]} 4. Nc3 {[%clk 0:03:01]}  Nxc3 {[%clk 0:02:49]} 5. dxc3 {[%clk 0:03:02]}  f6 {[%clk 0:02:46]} 6. Nh4 {[%clk 0:03:02]}  g6 {[%clk 0:02:35]} 7. f4 {[%clk 0:03:01]}  Qe7 {[%clk 0:02:33]} 8. f5 {[%clk 0:02:42]}  g5 {[%clk 0:02:12]} 9. Qh5+ {[%clk 0:02:32]}  Kd8 {[%clk 0:02:12]} 10. Ng6 {[%clk 0:02:01]}  hxg6 {[%clk 0:02:12]} 11. Qxh8 {[%clk 0:02:01]}  gxf5 {[%clk 0:02:13]} 12. Be3 {[%clk 0:01:48]}  f4 {[%clk 0:02:11]} 13. Bf2 {[%clk 0:01:46]}  d6 {[%clk 0:01:55]} 14. O-O-O {[%clk 0:01:43]}  Bg4 {[%clk 0:01:54]} 15. Kb1 {[%clk 0:01:39]}  Bxd1 {[%clk 0:01:49]} 16. Rxd1 {[%clk 0:01:38]}  Nd7 {[%clk 0:01:43]} 17. h4 {[%clk 0:01:31]}  Qg7 {[%clk 0:01:38]} 18. Qh5 {[%clk 0:01:23]}  c6 {[%clk 0:01:16]} 19. hxg5 {[%clk 0:01:20]}  fxg5 {[%clk 0:01:15]} 20. Be6 {[%clk 0:01:13]}  Kc7 {[%clk 0:01:10]} 21. c4 {[%clk 0:00:55]}  Nf6 {[%clk 0:01:10]} 22. Qe2 {[%clk 0:00:51]}  c5 {[%clk 0:00:52]} 23. Qd3 {[%clk 0:00:37]}  e4 {[%clk 0:00:41]} 24. Qa3 {[%clk 0:00:33]}  e3 {[%clk 0:00:39]} 25. Be1 {[%clk 0:00:30]}  Re8 {[%clk 0:00:27]} 26. Qxa7 {[%clk 0:00:19]}  Rxe6 {[%clk 0:00:27]} 27. Ba5+ {[%clk 0:00:19]}  Kd7 {[%clk 0:00:23]} 28. Qxb7+ {[%clk 0:00:19]}  Ke8 {[%clk 0:00:23]} 29. Qc8+ {[%clk 0:00:16]}  Kf7 {[%clk 0:00:23]} 30. Bd8 {[%clk 0:00:15]}  Be7 {[%clk 0:00:21]} 31. Qd7 {[%clk 0:00:14]}  e2 {[%clk 0:00:20]} 32. Re1 {[%clk 0:00:13]}  Qf8 {[%clk 0:00:17]} 33. Ba5 {[%clk 0:00:11]}  Qe8 {[%clk 0:00:17]} 34. Qa7 {[%clk 0:00:12]}  Qc6 {[%clk 0:00:16]} 35. Bc3 {[%clk 0:00:11]}  Qxg2 {[%clk 0:00:15]} 36. a4 {[%clk 0:00:10]}  f3 {[%clk 0:00:14]} 37. Bxf6 {[%clk 0:00:06]}  Kxf6 {[%clk 0:00:14]} 38. Qa5 {[%clk 0:00:05]}  f2 {[%clk 0:00:13]} 39. Rxe2 {[%clk 0:00:06]}  Rxe2 {[%clk 0:00:13]} 40. Ka2 {[%clk 0:00:07]}  f1=Q {[%clk 0:00:12]} 0-1


[Site "https://www.chess.com"]